bitfinex/quotes_ETHUSD_20260103
["timestamp","ask_amount","ask_price","bid_price","bid_amount"]
[1767408804120,2.36976052,3127.4,3126.6,2.33429949]
[1767408805934,0.002,3127.6,3126.7,6.39652028]
[1767408806241,2.37176052,3127.6,3126.9,2.33429949]
[1767408808124,2.37176052,3127.6,3127.0,3.1979533]
[1767408808322,2.37176052,3127.6,3127.0,5.53225279]
[1767408809499,2.37176052,3127.6,3127.0,2.33429949]
[1767408809704,2.37176052,3127.6,3126.8,6.24014456]
[1767408811223,2.37176052,3127.6,3127.0,0.001]
[1767408817430,2.37176052,3127.6,3127.0,2.40339476]
[1767408825432,0.002,3127.6,3127.0,2.40339476]
[1767408828661,2.48341285,3127.6,3127.0,0.001]
[1767408829640,2.67929998,3127.1,3126.5,2.40239476]
[1767408830164,5.16071283,3127.1,3126.5,5.60085791]
[1767408830339,2.48141285,3127.1,3126.5,5.60085791]
[1767408832786,2.48141285,3127.1,3126.5,2.40339476]
[1767408833078,2.48141285,3127.1,3126.5,0.001]
[1767408833287,3.40116597,3127.1,3126.5,3.19944276]
[1767408834812,0.839,3127.3,3126.5,2.40339476]
[1767408835089,0.839,3127.4,3126.7,2.40239476]
[1767408835959,2.48141285,3127.2,3126.5,0.001]
[1767408836195,2.48141285,3127.0,3126.5,0.001]
[1767408837286,2.48141285,3127.2,3126.5,0.001]
[1767408837472,3.40115739,3127.2,3126.5,0.001]
[1767408838387,2.48341285,3127.6,3126.6,2.40239476]
[1767408838590,0.002,3127.6,3126.6,2.40239476]
[1767408838994,0.002,3127.6,3126.8,2.40239476]
[1767408840777,2.36477241,3127.6,3126.8,2.40239476]
[1767408841507,5.5621467,3127.6,3126.8,5.60054977]
[1767408841809,3.59273466,3127.6,3126.9,2.47028236]
[1767408845101,3.59273466,3127.6,3126.9,5.66831547]
[1767408849019,6.79007513,3127.6,3126.9,2.47028236]
[1767408850214,2.36277241,3127.5,3126.9,2.47028236]
[1767408853129,5.04207239,3127.1,3126.5,0.001]
[1767408853300,2.36277241,3127.0,3126.5,0.001]
[1767408854845,5.56075105,3127.0,3126.5,0.001]
[1767408855252,2.36277241,3127.0,3126.5,0.001]
[1767408857947,0.002,3127.1,3126.5,0.001]
[1767408858249,0.40587302,3127.1,3126.5,2.47228236]
[1767408859356,3.60373132,3127.1,3126.5,2.47228236]
[1767408860548,5.96650373,3127.1,3126.5,2.47228236]
[1767408867546,2.76864543,3127.1,3126.5,2.47228236]
[1767408868165,5.96650235,3127.1,3126.5,2.47228236]
[1767408868347,0.68055023,3127.0,3126.5,2.47228236]
[1767408868857,3.87851357,3127.0,3126.5,0.001]
[1767408872870,0.68055023,3127.0,3126.5,0.001]
[1767408877085,2.9557903,3127.0,3126.5,0.001]
[1767408880188,6.1537738,3127.0,3126.5,0.001]
[1767408880488,0.65596468,3126.9,3126.5,0.001]
[1767408882400,2.93120475,3126.9,3126.5,0.001]
[1767408883782,0.65596468,3126.9,3126.5,0.001]
[1767408883982,2.68111309,3127.1,3126.5,2.46022226]
[1767408884206,0.40587302,3127.1,3126.5,2.46022226]
[1767408886382,0.40587302,3127.1,3126.5,5.65867968]
[1767408887584,0.40587302,3127.1,3126.5,2.46022226]
[1767408887785,3.60372519,3127.1,3126.5,2.46022226]
[1767408888915,0.40587302,3127.1,3126.5,2.46022226]
[1767408889822,0.40587302,3127.1,3126.5,5.65868368]
[1767408891024,0.40587302,3127.1,3126.5,2.46022226]
[1767408891444,0.40587302,3127.1,3126.5,5.65865987]
[1767408895868,0.40587302,3127.1,3126.5,2.46022226]
[1767408896565,0.40587302,3127.1,3126.5,5.65867572]
[1767408897463,2.9470278,3127.0,3126.5,0.001]
[1767408899767,6.14501502,3127.0,3126.5,0.001]
[1767408901667,6.14501502,3127.0,3126.1,3.19978209]
[1767408901668,2.40592424,3126.9,3126.1,2.35133671]
[1767408901839,2.40592424,3126.9,3126.1,5.55019569]
[1767408902040,2.40592424,3126.8,3126.2,3.19876382]
[1767408902240,2.40592424,3126.8,3126.5,0.001]
[1767408906067,5.6040893,3126.8,3126.5,0.001]
[1767408910669,2.40592424,3126.8,3126.5,0.001]
[1767408913660,4.18604971,3126.9,3126.5,0.001]
[1767408913861,0.72637617,3126.8,3126.5,0.001]
[1767408915451,3.13230041,3126.8,3126.2,2.35033671]
[1767408915674,3.19826014,3126.7,3126.2,2.35033671]
[1767408916087,3.19826014,3126.7,3126.1,0.001]
[1767408917356,4.24992117,3126.7,3126.1,2.35133671]
[1767408917556,6.65584541,3126.7,3126.1,0.001]
[1767408917952,2.40592424,3126.6,3126.1,0.001]
[1767408919886,1.05166103,3126.7,3126.1,2.35133671]
[1767408920382,2.40792424,3126.8,3126.1,2.35133671]
[1767408921253,5.60613939,3126.8,3126.1,2.35133671]
[1767408922275,5.60613939,3126.8,3126.2,2.35033671]
[1767408924187,5.60613939,3126.8,3126.0,3.19994629]
[1767408924188,2.40592424,3126.5,3125.5,0.001]
[1767408924387,2.40592424,3126.3,3125.7,3.20027265]
[1767408924688,2.40592424,3126.3,3125.7,0.001]
[1767408925617,5.60461442,3126.3,3125.7,0.001]
[1767408930100,2.30872658,3126.2,3125.6,0.001]
[1767408933201,5.50751606,3126.2,3125.6,0.001]
[1767408934684,2.30872658,3126.2,3125.6,2.44757869]
[1767408936113,3.19870838,3126.3,3125.6,2.44757869]
[1767408936818,5.50733879,3126.4,3125.6,5.6468748]
[1767408936978,6.32625735,3126.4,3125.7,2.44657869]
[1767408937925,4.99057342,3126.3,3125.6,0.001]
[1767408939603,5.8806065,3126.3,3125.6,0.001]
[1767408939900,2.30872658,3126.2,3125.6,0.001]
[1767408940106,2.30872658,3126.2,3125.6,2.44757869]
[1767408941077,5.50753346,3126.2,3125.6,2.44757869]
[1767408941279,6.54393988,3126.2,3125.6,2.44757869]
[1767408941910,3.345133,3126.2,3125.6,5.64695674]
[1767408942110,4.03970364,3126.3,3125.7,2.44657869]
[1767408942111,0.841,3126.3,3125.7,2.44657869]
[1767408942474,3.14972658,3126.3,3125.7,2.44657869]
[1767408943113,6.34840948,3126.3,3125.7,2.44657869]
[1767408943314,3.14972658,3126.3,3125.7,5.64586148]
[1767408943613,3.14972658,3126.3,3125.7,2.44657869]
[1767408943816,4.10440719,3126.3,3125.7,2.44657869]
[1767408944910,7.30311669,3126.3,3125.7,2.44657869]
[1767408945092,2.30872658,3126.2,3125.6,0.001]
[1767408946396,2.30872658,3126.1,3125.6,0.001]
[1767408948490,2.30872658,3126.1,3125.4,3.20059045]
[1767408950506,2.30872658,3126.1,3125.4,0.001]
[1767408950904,2.30872658,3126.1,3125.4,2.44757869]
[1767408954133,2.30872658,3126.1,3125.4,5.64708859]
[1767408954624,2.30872658,3126.1,3125.5,2.44657869]
[1767408955241,2.31072658,3126.1,3125.5,2.44657869]
[1767408956139,2.31072658,3126.1,3125.5,5.64600756]
[1767408958216,0.002,3126.1,3125.5,6.53075931]
[1767408960050,0.002,3126.1,3125.6,5.66294555]
[1767408960744,0.002,3126.1,3125.6,2.46357664]
[1767408960949,0.002,3126.1,3125.5,3.1994481]
[1767408961145,2.35146006,3126.1,3125.4,5.66414263]
[1767408961951,2.35146006,3126.1,3125.5,3.19947536]
[1767408962244,2.35146006,3126.1,3125.4,2.46457664]
[1767408963250,2.34946006,3126.0,3125.4,2.46457664]
[1767408963446,2.34946006,3126.0,3125.4,5.66410624]
[1767408963647,2.34946006,3126.0,3125.4,5.9107639]
[1767408963944,0.002,3126.1,3125.4,5.9107639]
[1767408964534,5.55033722,3126.1,3125.4,5.9107639]
[1767408964744,5.55033722,3126.1,3125.4,5.66410624]
[1767408965255,2.35146006,3126.1,3125.4,5.66410624]
[1767408965555,5.55036852,3126.1,3125.4,5.66410624]
[1767408966563,2.34946006,3126.0,3125.4,3.2005296]
[1767408966952,2.34946006,3125.8,3125.3,0.001]
[1767408969358,0.002,3126.1,3125.3,2.46457664]
[1767408969567,0.002,3126.1,3125.5,2.46357664]
[1767408972466,0.002,3126.1,3125.5,5.66303139]
[1767408973294,0.002,3126.1,3125.5,2.46357664]
[1767408973588,0.8749115,3126.0,3125.5,2.46357664]
[1767408974971,4.07389298,3126.0,3125.5,2.46357664]
[1767408975977,4.07389298,3126.0,3125.4,0.001]
[1767408976293,6.42335304,3126.0,3125.4,0.001]
[1767408976985,3.22437156,3126.0,3125.4,0.001]
[1767408977191,3.22437156,3126.0,3125.4,2.46457664]
[1767408978268,0.8749115,3126.0,3125.4,2.46457664]
[1767408978793,0.8749115,3126.0,3125.5,2.46357664]
[1767408979788,0.8749115,3126.0,3125.6,2.49457049]
[1767408979981,0.002,3126.1,3125.6,2.49457049]
[1767408980588,3.20088405,3126.1,3125.6,2.46257664]
[1767408980784,0.002,3126.1,3125.6,2.46257664]
[1767408986807,0.002,3126.1,3125.7,2.46357664]
[1767408987702,0.002,3126.1,3125.7,2.49556947]
[1767408987909,0.002,3126.1,3125.7,2.46357664]
[1767408996400,0.002,3126.1,3125.5,5.56131975]
[1767408997314,0.002,3126.1,3125.6,2.36086987]
[1767408997516,0.002,3126.1,3125.8,2.36086987]
[1767409001425,0.002,3126.3,3125.9,2.39286065]
[1767409001724,0.002,3126.3,3125.9,2.36086987]
[1767409001926,0.002,3126.3,3126.0,3.2367829]
[1767409002322,0.002,3126.3,3126.1,2.36086987]
[1767409005716,0.002,3126.3,3126.1,5.55974059]
[1767409007035,0.002,3126.3,3126.1,5.59172932]
[1767409007215,2.34649953,3126.7,3126.1,5.55974059]
[1767409007417,2.34649953,3126.7,3126.2,0.96346158]
[1767409007852,0.002,3126.8,3126.2,0.96346158]
[1767409008044,2.34849953,3126.8,3126.2,0.96346158]
[1767409008454,0.002,3126.3,3126.2,0.96346158]
[1767409009626,2.34849953,3126.8,3126.2,6.52308249]
[1767409010166,2.34849953,3126.8,3126.2,3.32433145]
[1767409014475,5.54666055,3126.8,3126.2,3.32433145]
[1767409015082,2.34849953,3126.8,3126.2,6.52309683]
[1767409016479,2.34849953,3126.8,3126.3,0.65240968]
[1767409016880,0.002,3126.8,3126.3,0.65240968]
[1767409017984,0.002,3126.8,3126.4,2.36086987]
[1767409018970,0.002,3126.8,3126.3,0.65240968]
[1767409020003,0.002,3127.1,3126.5,2.35088824]
[1767409020158,0.002,3127.1,3126.6,0.5581441]
[1767409021181,0.002,3127.1,3126.6,3.75641798]
[1767409023469,0.002,3127.1,3126.6,0.5581441]
[1767409023857,2.31105153,3127.1,3126.6,3.75647586]
[1767409025180,2.31105153,3127.1,3126.6,0.5581441]
[1767409025383,2.31105153,3127.1,3126.5,3.19844969]
[1767409026081,2.31105153,3127.1,3126.6,3.19835564]
[1767409030507,2.31105153,3127.1,3126.5,3.19946473]
[1767409032702,2.31105153,3127.1,3126.5,0.001]
[1767409039596,2.31105153,3127.1,3126.5,2.35188824]
[1767409041329,2.31105153,3127.1,3126.6,3.19836243]
[1767409049055,2.31105153,3127.1,3126.5,3.19943172]
[1767409051238,2.31105153,3127.1,3126.5,0.001]
[1767409055371,0.002,3127.1,3126.6,2.40151053]
[1767409055669,0.002,3127.1,3126.6,2.96161829]
[1767409057783,0.002,3127.1,3126.6,6.15996562]
[1767409058166,0.002,3127.1,3126.6,3.75845509]
[1767409058367,2.32694854,3127.1,3126.6,3.75845509]
[1767409066496,2.32694854,3127.1,3126.6,3.19834733]
[1767409067900,2.32694854,3127.1,3126.5,0.001]
[1767409070984,2.32694854,3127.1,3126.5,0.03298464]
[1767409071185,2.32694854,3127.1,3126.5,0.001]
[1767409071699,0.002,3127.1,3126.6,2.40151053]
[1767409071998,0.002,3127.1,3126.7,0.0319826]
[1767409072170,0.002,3127.1,3126.7,3.23019722]
[1767409072672,0.002,3127.1,3126.7,5.63170775]
[1767409075599,0.002,3127.1,3126.8,2.40151053]
[1767409075799,0.002,3127.6,3127.0,2.40151053]
[1767409078101,0.002,3127.6,3127.0,5.59943245]
[1767409079283,0.002,3127.1,3127.0,5.59943245]
[1767409079608,0.002,3127.6,3127.0,5.59943245]
[1767409080717,0.002,3127.6,3127.1,2.28874337]
[1767409081208,0.002,3127.6,3126.9,3.19802495]
[1767409081209,2.25326925,3127.6,3126.9,2.28874337]
[1767409081388,2.3427962,3127.6,3126.7,2.28874337]
[1767409081591,2.25126925,3127.2,3126.5,5.48813707]
[1767409081786,2.25126925,3127.0,3126.5,0.001]
[1767409086094,5.44922483,3127.0,3126.5,0.001]
[1767409086282,2.25126925,3127.0,3126.5,0.001]
[1767409088407,0.002,3127.1,3126.5,0.001]
[1767409088729,0.002,3127.1,3126.5,2.28974337]
[1767409091535,0.002,3127.1,3126.5,5.48820165]
[1767409093243,0.002,3127.1,3126.6,2.32072699]
[1767409094527,0.002,3127.1,3126.6,2.28874337]
[1767409097874,2.25126925,3127.0,3126.5,0.001]
[1767409101145,5.44924044,3127.0,3126.5,0.001]
[1767409101862,2.25126925,3127.0,3126.5,0.001]
[1767409102267,5.44923393,3127.0,3126.5,0.001]
[1767409103564,2.25126925,3126.9,3126.5,0.001]
[1767409106140,5.44937349,3126.9,3126.5,0.001]
[1767409107439,2.25126925,3126.8,3126.5,0.001]
[1767409109438,5.44946692,3126.8,3126.5,0.001]
[1767409109745,2.25126925,3126.8,3126.5,0.001]
[1767409111868,5.87978801,3127.1,3126.5,0.001]
[1767409111869,5.46737618,3127.0,3126.5,0.001]
[1767409112067,6.6020926,3127.0,3126.5,0.001]
[1767409112445,2.26942288,3126.9,3126.5,0.001]
[1767409116579,5.46753336,3126.9,3126.5,0.001]
[1767409122701,8.66564384,3126.9,3126.5,0.001]
[1767409123200,5.46753336,3126.9,3126.5,0.001]
[1767409124519,8.66564384,3126.9,3126.5,0.001]
[1767409126213,5.46753336,3126.9,3126.5,0.001]
[1767409127921,8.66564384,3126.9,3126.5,0.001]
[1767409128215,5.46753336,3126.9,3126.5,0.001]
[1767409128412,8.66564384,3126.9,3126.5,0.001]
[1767409129996,2.26942288,3126.8,3126.5,0.001]
[1767409131118,3.19826014,3126.7,3126.5,0.001]
[1767409133434,6.33426398,3126.7,3126.1,0.001]
[1767409133641,5.46768302,3126.7,3126.1,0.001]
[1767409134742,2.26942288,3126.7,3126.1,2.40240691]
[1767409136329,3.19820209,3126.8,3126.1,2.40240691]
[1767409138440,5.46762497,3126.8,3126.1,2.40240691]
[1767409138732,2.26942288,3126.7,3126.1,0.001]
[1767409139108,2.26942288,3126.7,3126.1,2.40240691]
[1767409141142,5.46772226,3126.7,3126.1,2.40240691]
[1767409142337,5.46772226,3126.7,3126.1,5.60128083]
[1767409143443,5.46772226,3126.7,3126.1,2.40240691]
[1767409143939,3.19818759,3126.8,3126.2,2.35057209]
[1767409144240,5.58723257,3126.8,3126.2,2.35057209]
[1767409159073,5.58923257,3126.8,3126.2,2.35057209]
[1767409160370,3.20018759,3126.8,3126.2,2.35057209]
[1767409160876,0.002,3126.8,3126.2,2.35057209]
[1767409168466,0.002,3126.8,3126.2,5.54933212]
[1767409168769,0.002,3126.8,3126.2,2.35057209]
[1767409168959,0.96460973,3126.8,3126.2,2.35057209]
[1767409170887,4.1627972,3126.8,3126.2,2.35057209]
[1767409172882,0.96460973,3126.8,3126.2,5.54933882]
[1767409173187,4.16278821,3126.8,3126.2,2.35057209]
[1767409178699,0.96460973,3126.8,3126.2,5.54934061]
[1767409178900,0.002,3126.8,3126.2,5.54934061]
[1767409181404,2.42517598,3126.8,3126.2,2.35057209]
[1767409184410,2.42317598,3126.7,3126.1,0.001]
[1767409185604,2.68056137,3126.4,3125.7,2.47810315]
[1767409185782,0.51037373,3126.3,3125.7,2.47810315]
[1767409185983,2.42317598,3126.6,3125.9,2.47810315]
[1767409186505,3.19846473,3126.5,3125.9,2.47810315]
[1767409190917,3.19846473,3126.5,3125.9,2.47910315]
[1767409198417,3.20046473,3126.5,3125.9,2.47910315]
[1767409199289,4.16656574,3126.5,3125.9,2.47910315]
[1767409201326,7.36503047,3126.5,3125.9,2.47910315]
[1767409201626,2.26458855,3126.4,3125.9,0.001]
[1767409202496,4.94514992,3126.1,3125.5,0.001]
[1767409202702,0.49451499,3126.0,3125.5,0.001]
[1767409202896,4.94514992,3126.1,3125.5,0.001]
[1767409203103,2.26458855,3126.0,3125.5,0.001]
[1767409203304,3.19907866,3125.9,3125.5,0.001]
[1767409204205,5.46360004,3126.0,3125.5,0.001]
[1767409213346,2.26458855,3125.9,3125.5,0.001]
[1767409214547,3.20101149,3126.0,3125.5,0.001]
[1767409216227,3.20101149,3126.0,3125.5,2.34463371]
[1767409227045,0.002,3126.0,3125.5,2.34463371]
[1767409229993,2.38941853,3125.9,3125.5,0.001]
[1767409230369,2.38941853,3125.9,3125.3,0.001]
[1767409231489,2.38941853,3125.9,3125.5,0.001]
[1767409232284,0.002,3126.0,3125.5,0.001]
[1767409233485,0.002,3126.0,3125.5,2.42851487]
[1767409238328,2.39141853,3126.0,3125.5,0.001]
[1767409238479,2.95043809,3126.0,3125.5,0.001]
[1767409241806,0.002,3126.0,3125.5,0.001]
[1767409242014,2.39141853,3126.0,3125.5,0.001]
[1767409242216,0.002,3126.0,3125.5,2.42851487]
[1767409252534,0.002,3126.5,3125.9,2.42751487]
[1767409252727,0.002,3126.5,3126.1,2.40789939]
[1767409253236,0.002,3126.5,3126.0,2.67026636]
[1767409254134,0.002,3126.8,3126.3,2.42751487]
[1767409254826,0.002,3126.8,3126.4,3.19856704]
[1767409260537,2.33518765,3126.8,3126.4,3.19856704]
[1767409261441,2.33518765,3126.8,3126.3,3.1986242]
[1767409261733,2.33518765,3126.8,3126.2,3.19877167]
[1767409261941,2.33518765,3126.8,3126.2,4.18559672]
[1767409262121,2.33518765,3126.8,3126.2,6.4534691]
[1767409262323,2.33518765,3126.8,3126.2,9.65224077]
[1767409263045,0.002,3126.8,3126.2,9.65224077]
[1767409263942,2.33518765,3126.8,3126.2,7.38436839]
[1767409264124,2.33518765,3126.8,3126.2,6.39754334]
[1767409265216,0.002,3126.8,3126.3,2.26787238]
[1767409265644,0.002,3126.8,3126.4,0.03198567]
[1767409266243,0.002,3126.8,3126.5,2.26787238]
[1767409266452,0.002,3126.8,3126.5,2.26687238]
[1767409266654,0.002,3127.1,3126.7,2.26787238]
[1767409266855,0.002,3127.3,3126.7,2.26787238]
[1767409267365,0.002,3127.3,3126.9,2.26787238]
[1767409267964,0.002,3127.3,3127.1,2.26787238]
[1767409268539,0.002,3127.3,3127.1,0.12795925]
[1767409268755,0.002,3127.3,3126.9,2.26787238]
[1767409270248,0.002,3127.3,3126.8,4.15783087]
[1767409270450,2.33518765,3127.3,3126.5,3.1984203]
[1767409270666,2.33518765,3127.3,3126.6,3.19830326]
[1767409270845,2.33518765,3127.3,3126.6,4.15812972]
[1767409273075,5.53285124,3127.3,3126.6,4.15812972]
[1767409273473,2.33518765,3127.3,3126.6,4.15812972]
[1767409274758,2.33318765,3127.2,3126.6,0.95982646]
[1767409275260,2.33318765,3127.2,3126.6,4.15814789]
[1767409275450,3.19966855,3127.3,3126.6,6.42602027]
[1767409275649,5.5328562,3127.3,3126.6,6.42602027]
[1767409276173,5.5328562,3127.3,3126.6,3.22769884]
[1767409276383,2.33318765,3127.2,3126.6,3.22769884]
[1767409277875,2.33318765,3127.2,3126.6,6.42605208]
[1767409278193,5.53094044,3127.2,3126.6,3.22769884]
[1767409278393,2.33318765,3127.2,3126.6,6.42605802]
[1767409278553,5.53095911,3127.2,3126.6,3.22769884]
[1767409279891,5.53095911,3127.2,3126.6,0.95982646]
[1767409280177,2.33318765,3127.1,3126.4,3.10687238]
[1767409282174,3.1979533,3127.0,3126.4,3.10687238]
[1767409282376,5.53107521,3127.1,3126.4,3.10687238]
[1767409284203,6.17168796,3127.1,3126.4,3.10687238]
[1767409284905,2.33318765,3127.0,3125.9,5.46691215]
[1767409285204,2.33318765,3127.0,3126.0,2.26787238]
[1767409286296,2.33318765,3126.8,3125.9,0.839]
[1767409286496,2.33318765,3126.8,3125.5,0.001]
[1767409286497,2.33318765,3126.5,3125.5,0.001]
[1767409286696,2.33318765,3126.4,3125.5,0.001]
[1767409286879,2.33318765,3126.2,3125.5,0.001]
[1767409287395,2.33318765,3126.1,3125.5,0.001]
[1767409287598,2.33318765,3126.1,3126.0,0.001]
[1767409287978,2.33318765,3126.1,3125.5,0.001]
[1767409289101,2.29548879,3125.9,3125.4,0.001]
[1767409289402,2.8449353,3125.9,3125.4,0.001]
[1767409291419,5.64482642,3126.1,3125.4,2.2861632]
[1767409292213,2.44592482,3126.0,3125.4,0.001]
[1767409292999,2.44592482,3126.0,3125.4,2.2861632]
[1767409293512,5.64482642,3126.1,3125.4,2.2861632]
[1767409293722,2.44592482,3126.1,3125.5,2.31715808]
[1767409294091,3.1985801,3126.4,3125.6,2.2851632]
[1767409294314,3.1985801,3126.4,3125.7,2.2851632]
[1767409294618,5.64450492,3126.4,3125.7,2.2851632]
[1767409295397,2.44592482,3126.3,3125.7,2.2851632]
[1767409295609,2.44592482,3126.3,3125.4,4.03958485]
[1767409295802,2.44592482,3126.2,3125.4,4.03958485]
[1767409295998,2.44592482,3126.2,3125.4,6.32474805]
[1767409296291,2.44592482,3126.2,3125.4,3.1251632]
[1767409296715,2.44592482,3126.2,3125.4,6.32473555]
[1767409296914,2.44592482,3126.2,3125.4,3.1251632]
[1767409297123,2.44592482,3126.1,3125.4,6.32473081]
[1767409297315,2.44592482,3126.1,3125.5,2.2851632]
[1767409298299,2.44592482,3126.1,3125.5,5.48463965]
[1767409298818,4.17991301,3126.2,3125.6,2.2851632]
[1767409299627,0.98113881,3126.2,3125.6,2.2851632]
[1767409301325,0.98113881,3126.2,3125.7,2.2851632]
[1767409302426,0.98113881,3126.2,3125.8,0.03199181]
[1767409302599,5.64453096,3126.4,3125.8,2.31615501]
[1767409303532,2.44592482,3126.3,3125.8,0.03099181]
[1767409303829,2.44592482,3126.3,3125.6,2.2851632]
[1767409304934,5.64467709,3126.3,3125.6,2.2851632]
[1767409306568,6.79713663,3126.3,3125.6,2.2851632]
[1767409306743,9.9958889,3126.3,3125.6,2.2851632]
[1767409307050,6.39774798,3126.1,3125.5,0.001]
[1767409307251,2.44592482,3125.8,3125.5,0.001]
[1767409309172,3.19928336,3125.7,3125.5,0.001]
[1767409310148,2.44592482,3125.8,3125.5,0.001]
[1767409310149,5.64515304,3125.8,3125.5,0.001]
[1767409311058,6.52956755,3125.8,3125.5,0.001]
[1767409312042,2.44592482,3125.7,3125.5,0.001]
[1767409312443,2.44592482,3125.6,3125.4,0.001]
[1767409312643,2.44592482,3125.6,3125.3,0.001]
[1767409312847,3.09888826,3125.6,3125.3,0.001]
[1767409315471,6.29837074,3125.6,3125.3,0.001]
[1767409316486,9.49785322,3125.6,3125.3,0.001]
[1767409317182,6.29837074,3125.6,3125.3,0.001]
[1767409319073,2.44592482,3125.5,3124.9,4.04008742]
[1767409319267,3.85244592,3125.6,3124.9,6.32525062]
[1767409319988,3.85244592,3125.6,3125.0,2.25708644]
[1767409320184,0.65296344,3125.6,3125.1,2.25708644]
[1767409320384,2.47039787,3126.0,3125.1,2.28908541]
[1767409321190,3.19907866,3125.9,3125.1,2.28908541]
[1767409322260,2.47039787,3125.8,3125.1,2.28908541]
[1767409322466,2.47039787,3125.6,3124.9,0.001]
[1767409322665,2.47039787,3125.6,3124.6,4.99885694]
[1767409323492,2.47039787,3125.6,3124.7,3.2002939]
[1767409324486,3.19948808,3125.5,3124.7,3.2002939]
[1767409324791,3.19948808,3125.5,3124.8,2.25708644]
[1767409328004,4.3545513,3125.5,3124.8,2.25708644]
[1767409328298,4.3545513,3125.5,3124.8,2.25808644]
[1767409330999,6.82494917,3125.5,3124.8,2.25808644]
[1767409331898,10.02443725,3125.5,3124.8,2.25808644]
[1767409332286,6.82494917,3125.5,3124.8,2.25808644]
[1767409332471,3.47283418,3125.4,3124.8,2.25808644]
[1767409332684,3.47283418,3125.4,3124.8,0.001]
[1767409332882,3.19969282,3125.3,3124.8,0.001]
[1767409333507,2.47039787,3125.2,3124.8,0.001]
[1767409335702,2.47039787,3125.0,3124.6,0.95844904]
[1767409336986,2.47039787,3125.0,3124.8,0.001]
[1767409337197,2.47039787,3125.0,3124.6,0.95844904]
[1767409338005,2.47039787,3125.0,3124.6,0.001]
[1767409343911,5.15171004,3124.9,3124.5,0.001]
[1767409344813,2.47039787,3124.9,3124.5,0.001]
[1767409350913,2.36181849,3124.6,3124.0,3.20195672]
[1767409351439,2.36181849,3124.6,3124.0,0.001]
[1767409351615,0.50431307,3124.5,3124.0,0.001]
[1767409357746,0.50431307,3124.5,3124.0,2.34795289]
[1767409357917,2.36181849,3124.8,3124.1,2.31494368]
[1767409358641,2.36181849,3124.8,3124.0,0.03300921]
[1767409358814,0.84,3124.9,3124.0,2.34795289]
[1767409359345,3.20181849,3124.9,3124.2,2.31494368]
[1767409360647,0.002,3124.5,3124.2,2.31494368]
[1767409362034,0.002,3125.0,3124.5,2.31494368]
[1767409362239,0.35418784,3125.0,3124.5,2.31494368]
[1767409362827,0.35418784,3125.0,3124.5,5.51540838]
[1767409363032,0.002,3125.0,3124.6,2.31394368]
[1767409364263,0.002,3125.7,3125.0,2.31494368]
[1767409365554,3.20124239,3125.8,3125.0,2.31494368]
[1767409365555,5.55844612,3125.8,3125.0,2.31494368]
[1767409365722,2.36181849,3125.7,3125.0,2.31494368]
[1767409366156,2.36181849,3125.7,3124.8,5.51513867]
[1767409366343,2.36181849,3125.5,3124.6,2.31494368]
[1767409366523,2.36181849,3125.5,3124.5,0.84]
[1767409366720,2.36181849,3125.5,3124.6,2.31494368]
[1767409366925,2.36181849,3125.4,3124.6,3.20040965]
[1767409367121,2.36181849,3125.4,3124.5,4.04049198]
[1767409367326,0.48720242,3125.3,3124.6,3.20040965]
[1767409368935,0.64371067,3125.4,3124.5,6.40100406]
[1767409369139,3.19951981,3125.5,3124.6,2.31494368]
[1767409369355,0.002,3125.3,3124.6,2.31494368]
[1767409370467,0.48720242,3125.2,3124.5,8.71594774]
[1767409370667,0.002,3125.3,3124.6,2.31494368]
[1767409370839,0.48920242,3125.3,3124.6,2.31494368]
[1767409371036,0.002,3125.3,3124.7,2.31494368]
[1767409372175,0.002,3125.3,3124.8,5.51514849]
[1767409374649,0.002,3125.3,3124.8,5.54715053]
[1767409374850,0.002,3125.3,3124.8,5.51514849]
[1767409375856,0.002,3125.3,3124.9,2.31494368]
[1767409376743,0.002,3125.3,3125.0,2.31494368]
[1767409377469,3.19907866,3125.9,3125.3,2.31494368]
[1767409377670,0.63981573,3125.8,3125.3,2.31271954]
[1767409378362,3.83899683,3125.8,3125.3,2.31271954]
[1767409383376,0.63981573,3125.8,3125.3,2.31271954]
[1767409383577,4.03901675,3126.0,3125.3,2.31271954]
[1767409383867,0.002,3125.8,3125.3,5.51240964]
[1767409384039,0.002,3125.8,3125.4,2.4844059]
[1767409386176,0.002,3125.8,3125.0,2.4844059]
[1767409387199,0.002,3125.8,3125.1,2.4844059]
[1767409387374,0.77514601,3125.8,3125.1,2.4844059]
[1767409387673,3.19928336,3125.7,3125.1,2.4844059]
[1767409395186,6.39856672,3125.7,3125.1,2.4844059]
[1767409395370,6.88999328,3125.7,3125.1,2.4844059]
[1767409396783,6.89199328,3125.7,3125.1,2.4844059]
[1767409396958,3.19948808,3125.5,3125.1,2.4844059]
[1767409398562,3.19948808,3125.5,3124.8,2.4844059]
[1767409398766,6.89040272,3125.5,3124.8,2.4844059]
[1767409399708,3.19948808,3125.5,3124.8,2.4844059]
[1767409405107,3.19948808,3125.5,3124.8,2.4854059]
[1767409405313,0.71656045,3125.4,3124.8,2.4854059]
[1767409407433,3.19969282,3125.3,3124.8,2.4854059]
[1767409409216,0.49142656,3125.2,3124.8,0.001]
[1767409412633,3.19969282,3125.3,3124.8,0.001]
[1767409412927,3.19969282,3125.3,3124.8,2.49611736]
[1767409413128,3.91146696,3125.3,3124.8,2.49611736]
[1767409414021,0.71177414,3125.3,3124.8,2.49611736]
[1767409414212,3.19963251,3125.4,3124.8,2.49611736]
[1767409415606,0.002,3125.5,3124.8,2.49611736]
[1767409415801,0.002,3125.5,3124.9,2.49511736]
[1767409416006,0.002,3125.5,3124.9,2.52711838]
[1767409416247,0.002,3125.5,3124.9,2.49511736]
[1767409418967,0.002,3125.5,3125.0,2.49511736]
[1767409420875,0.002,3125.5,3125.1,2.49511736]
[1767409424980,0.27061091,3125.5,3125.1,2.49511736]
[1767409426758,3.19959045,3125.4,3125.1,2.49511736]
[1767409430401,0.27061091,3125.5,3125.1,2.49511736]
[1767409431494,3.47010177,3125.5,3125.1,2.49511736]
[1767409435084,3.47010177,3125.5,3124.9,0.001]
[1767409435493,3.47010177,3125.5,3124.9,2.49611736]
[1767409442388,3.20149086,3125.5,3124.9,2.49611736]
[1767409445291,0.002,3125.5,3124.9,2.49611736]
[1767409450516,0.002,3125.5,3125.0,2.46297853]